lending/lending_fUSD_20250224
["ID","MTS","AMOUNT","RATE_DAILY","PERIOD"]
[354271232,1740382243521,-150.0,0.0001378,2]
[354271234,1740382243530,-150.0,0.00013828,2]
[354271236,1740382243539,-150.0,0.00013877,2]
[354271238,1740382243548,-150.0,0.00013925,2]
[354271240,1740382243557,-150.0,0.00013974,2]
[354271242,1740382243567,-150.0,0.00014022,2]
[354271244,1740382243576,-2591.59838205,0.00014029,2]
[354271246,1740382243585,-150.0,0.00014038,2]
[354271248,1740382243594,-150.0,0.00014038,2]
[354271250,1740382243603,-150.0,0.00014071,2]
[354271252,1740382243612,-700.0,0.000141,5]
[354271254,1740382243622,-880.82,0.00014104,2]
[354271256,1740382243631,-150.0,0.00014119,2]
[354271258,1740382243640,-150.0,0.00014168,2]
[354271260,1740382243650,-1400.0,0.000142,5]
[354271262,1740382243659,-150.0,0.00014216,2]
[354271264,1740382243668,-150.0,0.00014265,2]
[354271266,1740382243677,-2100.0,0.000143,5]
[354271268,1740382243687,-150.0,0.00014313,2]
[354271270,1740382243696,-150.0,0.00014362,2]
[354271272,1740382243705,-2800.0,0.000144,5]
[354271274,1740382243715,-150.0,0.0001441,2]
[354271276,1740382243724,-150.0,0.00014459,2]
[354271278,1740382243734,-385.45,0.00014481,2]
[354271280,1740382243743,-2591.59838205,0.00014496,2]
[354271282,1740382243752,-3500.0,0.000145,5]
[354271284,1740382243762,-150.0,0.00014507,2]
[354271286,1740382243771,-150.0,0.0001454,2]
[354271288,1740382243780,-150.0,0.0001454,2]
[354271290,1740382243789,-150.0,0.00014556,2]
[354271292,1740382243799,-700.0,0.000146,5]
[354271294,1740382243808,-150.0,0.00014604,2]
[354271296,1740382243817,-150.0,0.00014653,2]
[354271298,1740382243826,-700.0,0.000147,5]
[354271300,1740382243836,-150.0,0.00014701,2]
[354271302,1740382243845,-150.0,0.0001475,2]
[354271304,1740382243854,-150.0,0.00014798,2]
[354271306,1740382243865,-255.0690001,0.000148,2]
[354271308,1740382243875,-700.0,0.000148,5]
[354271310,1740382243885,-150.0,0.00014847,2]
[354271312,1740382243894,-23900.0,0.0001488,2]
[354271314,1740382243903,-250.0,0.00014884,2]
[354271316,1740382243912,-150.0,0.00014896,2]
[354271318,1740382243922,-700.0,0.000149,5]
[354271320,1740382243931,-150.0,0.00014944,2]
[354271322,1740382243942,-704.90870065,0.00014962,2]
[354271325,1740382243952,-704.90870065,0.00014962,2]
[354271327,1740382243962,-704.90870065,0.00014963,2]
[354271329,1740382243972,-704.90870065,0.00014963,2]
[354271331,1740382243981,-704.90870065,0.00014963,2]
[354271333,1740382243990,-2591.59838205,0.00014963,2]
[354271334,1740382243999,-843.89060349,0.00014973,2]
[354271336,1740382244009,-1058.9807265,0.00014973,2]
[354271338,1740382244018,-345.13310563,0.00014981,2]
[354271341,1740382244028,-441.19773207,0.00014981,2]
[354271342,1740382244037,-328.07825886,0.00014981,2]
[354271344,1740382244046,-381.98420208,0.00014981,2]
[354271346,1740382244055,-150.0,0.00014993,2]
[354271349,1740382244064,-150.0,0.00015041,2]
[354271350,1740382244073,-150.0,0.00015041,2]
[354271352,1740382244082,-150.0,0.00015041,2]
[354271354,1740382244092,-150.0,0.00015041,2]
[354271357,1740382244101,-203.82369593,0.00015052,2]
[354271358,1740382244110,-6398.68137132,0.00015062,5]
[354271361,1740382244120,-199588.56454986,0.00015062,15]
[354271535,1740382246064,-1605.11937501,0.00011591,2]
[354271536,1740382246075,-142.8385885,0.00011591,2]
[354271537,1740382246084,-743.38157155,0.00014973,2]
[354271778,1740382803804,-7000.0,0.0001,2]
[354271779,1740382984077,-150.0,0.0001,2]
[354271780,1740382985476,-150.0,0.0001,2]
[354271781,1740382986686,-150.0,0.0001,2]
[354271784,1740383230819,159.69,8.767e-05,2]
[354271788,1740383432002,-61.55556122,0.0001,2]
[354271789,1740383432011,-159.872675,0.00010958,2]
[354271790,1740383432021,-181.50096287,0.00012094,2]
[354271791,1740383432057,-59.39306013,0.00012094,2]
[354271792,1740383432066,-684.54116954,0.00012213,2]
[354271793,1740383432078,-595.67883046,0.00012213,2]
[354271794,1740383432087,-1596.67,0.00013047,2]
[354271795,1740383432097,-1933.58616954,0.00013059,2]
[354271796,1740383432108,-66.41383046,0.00013059,2]
[354271797,1740383432117,-231.95120059,0.00013376,2]
[354271798,1740383432127,-231.95120058,0.00013403,2]
[354271799,1740383432136,-872.84,0.00013476,2]
[354271800,1740383432145,-583.36,0.00013503,2]
[354271801,1740383432154,-150.0,0.00013537,2]
[354271802,1740383432163,-150.0,0.00013537,2]
[354271803,1740383432172,-150.0,0.00013537,2]
[354271804,1740383432182,-150.0,0.00013537,2]
[354271805,1740383432191,-150.0,0.00013587,2]
[354271806,1740383432200,-150.0,0.00013637,2]
[354271807,1740383432209,-150.0,0.00013687,2]
[354271808,1740383432218,-150.0,0.00013698,2]
[354271809,1740383432227,-300.0,0.00013698,2]
[354271810,1740383432237,-957.08062255,0.00013699,2]
[354271811,1740383432249,-449.32685517,0.00013699,2]
[354271812,1740383432260,-299.99,0.00013699,2]
[354271813,1740383432272,-7962.05252228,0.00013699,2]
[354271814,1740383432281,-1318.7,0.00013699,2]
[354271815,1740383432290,-9999.99,0.00013699,2]
[354271816,1740383432299,-150.99,0.00013699,2]
[354271817,1740383432308,-299.99,0.00013699,2]
[354271818,1740383432317,-150.99,0.00013699,2]
[354271819,1740383432326,-1520.53,0.00013699,2]
[354271820,1740383432335,-6375.0647144,0.00013699,2]
[354271821,1740383432351,-352.1959996,0.00013699,2]
[354271822,1740383432362,-614.9899999,0.00013699,2]
[354271823,1740383432374,-1050.53320248,0.00013699,2]
[354271824,1740383432384,-1062.34977108,0.00013699,2]
[354271825,1740383432395,-547.20265525,0.00013699,2]
[354271826,1740383432419,-744.5572046,0.00013699,2]
[354271827,1740383432430,-5506.28995044,0.00013699,2]
[354271828,1740383432441,-679.36358985,0.00013699,2]
[354271829,1740383432452,-534.5368763,0.00013699,2]
[354271830,1740383432463,-988.3344858,0.00013699,2]
[354271831,1740383432474,-492.56648881,0.00013699,2]
[354271832,1740383432485,-1760.26191632,0.00013699,2]
[354271834,1740383432497,-2059.90069911,0.00013699,2]
[354271835,1740383432508,-996.04733761,0.00013699,2]
[354271836,1740383432519,-1962.78066715,0.00013699,2]
[354271841,1740383437954,-6006.2244413,0.00013699,2]
[354271842,1740383437963,-1855.5898641,0.00013699,2]
[354271843,1740383437974,-1757.0101359,0.00013699,2]
[354271844,1740383437983,-1483.8072577,0.00013699,2]
[354271845,1740383438015,-8516.1827423,0.00013699,2]
[354271846,1740383438025,-1386.68,0.00013699,2]
[354271847,1740383438034,-4322.92,0.00013699,2]
[354271848,1740383438043,-999.99,0.00013699,2]
[354271849,1740383438052,-293.94,0.000137,2]
[354271850,1740383438061,-150.0,0.00013738,2]
[354271851,1740383438070,-280.42,0.00013778,2]
[354271852,1740383438079,-150.0,0.00013788,2]
[354271853,1740383438088,-150.0,0.00013836,2]
[354271854,1740383438096,-150.0,0.00013838,2]
[354271855,1740383438105,-500.0,0.00013854,2]
[354271856,1740383438114,-1181.36,0.00013873,2]
[354271857,1740383438123,-150.0,0.00013888,2]
[354271858,1740383438132,-169.76,0.00013898,2]
[354271859,1740383438141,-250.0,0.00013904,2]
[354271860,1740383438150,-17340.46390759,0.00013934,2]
[354271861,1740383438161,-5469.65215,0.00013934,2]
[354271862,1740383438183,-1089.88394241,0.00013934,2]
[354271863,1740383438192,-150.0,0.00013938,2]
[354271864,1740383438202,-150.0,0.00013988,2]
[354271865,1740383438211,-150.0,0.00014038,2]
[354271866,1740383438219,-150.0,0.00014088,2]
[354271867,1740383438228,-700.0,0.000141,5]
[354271868,1740383438238,-150.0,0.00014139,2]
[354271869,1740383438247,-1000.0,0.00014179,2]
[354271871,1740383438256,-150.0,0.00014189,2]
[354271873,1740383438265,-1400.0,0.000142,5]
[354271875,1740383438274,-194.06,0.00014215,2]
[354271877,1740383438286,-150.0,0.00014239,2]
[354271879,1740383438295,-150.0,0.00014289,2]
[354271881,1740383438303,-150.0,0.00014289,2]
[354271883,1740383438312,-150.0,0.00014289,2]
[354271885,1740383438321,-2100.0,0.000143,5]
[354271887,1740383438330,-150.0,0.00014339,2]
[354271889,1740383438339,-150.0,0.00014389,2]
[354271891,1740383438348,-2800.0,0.000144,5]
[354271893,1740383438357,-150.0,0.00014439,2]
[354271895,1740383438366,-1280.22,0.00014477,2]
[354271897,1740383438375,-150.0,0.0001449,2]
[354271899,1740383438383,-3500.0,0.000145,5]
[354271901,1740383438392,-181.8552262,0.00014504,2]
[354271903,1740383438401,-16420.22905593,0.00014504,2]
[354271906,1740383438414,-8355.461751,0.00014504,2]
[354271908,1740383438428,-9279.43342046,0.00014504,2]
[354271910,1740383438439,-3907.34423347,0.00014504,2]
[354271913,1740383438455,-1366.15,0.00014504,2]
[354272031,1740383440556,-1025.9,0.00014504,2]
[354272049,1740383443077,-66021.50558454,0.00014504,2]
[354272050,1740383443086,-150.0,0.0001454,2]
[354272051,1740383443095,-150.0,0.0001459,2]
[354272052,1740383443104,-700.0,0.000146,5]
[354272053,1740383443116,-150.0,0.0001464,2]
[354272054,1740383443127,-150.0,0.0001469,2]
[354272055,1740383443135,-700.0,0.000147,5]
[354272056,1740383443144,-150.0,0.0001474,2]
[354272057,1740383443153,-280.61,0.00014789,2]
[354272058,1740383443162,-278.19,0.00014789,2]
[354272059,1740383443171,-278.19,0.00014789,2]
[354272060,1740383443180,-150.0,0.0001479,2]
[354272061,1740383443188,-109376.55331027,0.000148,4]
[354272062,1740383443197,-700.0,0.000148,5]
[354272063,1740383443207,-3869.60927308,0.00014829,2]
[354272064,1740383443216,-150.0,0.00014841,2]
[354272065,1740383443225,-150.0,0.00014891,2]
[354272066,1740383443233,-206.45004098,0.000149,2]
[354272067,1740383443242,-700.0,0.000149,5]
[354272068,1740383443251,-150.0,0.00014941,2]
[354272069,1740383443261,-1008.16430314,0.00014941,2]
[354272070,1740383443269,-1048.77477816,0.00014941,2]
[354272071,1740383443278,-1008.16430314,0.00014944,2]
[354272072,1740383443287,-1048.7747781,0.00014944,2]
[354272073,1740383443297,-1008.16430314,0.00014947,2]
[354272074,1740383443306,-1048.7747781,0.00014947,2]
[354272075,1740383443315,-1008.16430314,0.0001495,2]
[354272076,1740383443325,-1048.7747781,0.0001495,2]
[354272077,1740383443334,-1008.16430314,0.00014953,2]
[354272078,1740383443343,-1048.7747781,0.00014953,2]
[354272079,1740383443352,-1008.16430314,0.00014956,2]
[354272080,1740383443563,-1048.7747781,0.00014956,2]
[354272081,1740383443571,-1008.16430314,0.00014959,2]
[354272082,1740383443581,-1048.7747781,0.00014959,2]
[354272083,1740383443590,-1008.16430314,0.00014962,2]
[354272084,1740383443599,-704.90870065,0.00014962,2]
[354272085,1740383443608,-281.29686783,0.00014962,2]
[354272086,1740383443618,-381.98420208,0.00014962,2]
[354272087,1740383443628,-1048.7747781,0.00014962,2]
[354272088,1740383443637,-704.90870065,0.00014964,2]
[354272089,1740383443647,-1008.16430314,0.00014965,2]
[354272090,1740383443656,-704.90870065,0.00014965,2]
[354272091,1740383443665,-281.29686783,0.00014965,2]
[354272092,1740383443674,-1048.7747781,0.00014965,2]
[354272093,1740383443683,-704.90870065,0.00014967,2]
[354272094,1740383443692,-500.0,0.00014967,2]
[354272095,1740383443702,-419.18064731,0.00014967,2]
[354272096,1740383443711,-167.27035013,0.00014968,2]
[354272097,1740383443720,-1008.16430314,0.00014968,2]
[354272098,1740383443730,-704.90870065,0.00014968,2]
[354272099,1740383443739,-441.19773207,0.00014968,2]
[354272100,1740383443748,-281.29686783,0.00014968,2]
[354272101,1740383443759,-1048.7747781,0.00014968,2]
[354272102,1740383443768,-2999.99101217,0.00014989,5]
[354272103,1740383443778,-150.0,0.00014991,2]
[354272104,1740383443787,-518.07746289,0.00015,2]
[354272105,1740383443796,-5800.0,0.00015,2]
[354272106,1740383443805,-47258.49524577,0.00015,2]
[354272110,1740383879590,1950.43829224,0.0002,120]
[354272111,1740383886322,1000.0,0.0002,120]
[354272114,1740384076995,230.0,0.0002,120]
[354272115,1740384090821,150.0,0.00019615,120]
[354272116,1740384147440,500.0,0.0002,120]
[354272117,1740384216948,155.92,8.767e-05,2]
[354272135,1740384632195,-153.743712,0.00010958,2]
[354272136,1740384632205,-242.463465,0.00010958,2]
[354272137,1740384632214,-185.888642,0.00010958,2]
[354272138,1740384632223,-153.743712,0.00011041,2]
[354272139,1740384632232,-185.888642,0.00011041,2]
[354272140,1740384632241,-153.743712,0.00011123,2]
[354272141,1740384632250,-185.888642,0.00011123,2]
[354272142,1740384632259,-62.41041857,0.00011205,2]
[354272143,1740384632271,-91.33329343,0.00011205,2]
[354272144,1740384632280,-185.888642,0.00011205,2]
[354272145,1740384632290,-185.888642,0.00011287,2]
[354272146,1740384632300,-153.743712,0.00011369,2]
[354272147,1740384632309,-185.888642,0.00011369,2]
[354272148,1740384632318,-273.5117326,0.00011984,2]
[354272149,1740384632331,-935.4582674,0.00011984,2]
[354272150,1740384632340,-1026.611373,0.00013178,2]
[354272151,1740384632349,-798.33,0.00013215,2]
[354272152,1740384632359,-3306.74084068,0.00013245,2]
[354272153,1740384632389,-2394.23915932,0.00013245,2]
[354272154,1740384632399,-534.92,0.00013284,2]
[354272155,1740384632408,-2664.48,0.00013419,2]
[354272156,1740384632417,-300.0,0.00013487,2]
[354272157,1740384632426,-150.0,0.00013537,2]
[354272158,1740384632436,-150.0,0.00013537,2]
[354272159,1740384632445,-150.0,0.00013537,2]
[354272160,1740384632454,-150.0,0.00013698,2]
[354272161,1740384632463,-2196.02,0.00013699,2]
[354272162,1740384632472,-150.99,0.00013699,2]
[354272163,1740384632481,-6062.9,0.00013699,2]
[354272164,1740384632491,-150.99,0.00013699,2]
[354272165,1740384632499,-999.99,0.00013699,2]
[354272166,1740384632508,-177.29,0.00013699,2]
[354272167,1740384632517,-1464.96,0.00013769,2]
[354272168,1740384632526,-1368.22,0.00013845,2]
[354272169,1740384632539,-386.2,0.00013871,2]
[354272170,1740384632548,-820.84783845,0.00013894,2]
[354272171,1740384632557,-150.0,0.00013913,2]
[354272172,1740384632566,-23900.0,0.0001395,2]
[354272173,1740384632575,-392.90704367,0.00014056,2]
[354272174,1740384632640,-1459.51295633,0.00014056,2]
[354272175,1740384632649,-880.54,0.00014141,2]
[354272176,1740384632658,-783.47,0.00014141,2]
[354272177,1740384632667,-880.82,0.00014141,2]
[354272178,1740384632676,-1450.64938338,0.00014183,2]
[354272179,1740384632685,-1380.02,0.00014214,2]
[354272180,1740384632694,-1000.0,0.00014234,2]
[354272181,1740384632703,-921.91671408,0.00014248,2]
[354272188,1740384638235,-287.05328592,0.00014248,2]
[354272189,1740384638244,-150.0,0.00014289,2]
[354272190,1740384638254,-200.0,0.00014319,2]
[354272191,1740384638263,-1915.16,0.00014438,2]
[354272192,1740384638272,-150.0,0.00014665,2]
[354272193,1740384638282,-2225.36094315,0.0001485,2]
[354272194,1740384638292,-1008.16430314,0.00014862,2]
[354272195,1740384638301,-1008.16430314,0.00014873,2]
[354272196,1740384638311,-1008.16430314,0.00014884,2]
[354272197,1740384638320,-3516.04763078,0.00014892,2]
[354272198,1740384638329,-1008.16430314,0.00014895,2]
[354272199,1740384638338,-206.45004098,0.000149,2]
[354272200,1740384638348,-3919.35516874,0.000149,2]
[354272201,1740384638362,-8355.461751,0.000149,2]
[354272202,1740384638375,-36008.590824,0.000149,2]
[354272208,1740384640312,-11890.09309344,0.000149,2]
[354272209,1740384640324,-8496.342954,0.000149,2]
[354272210,1740384640334,-7427.8962,0.000149,2]
[354272211,1740384640418,-2610.97439795,0.000149,2]
[354272212,1740384640430,-466.5999998,0.000149,2]
[354272213,1740384640470,-3213.97866076,0.000149,2]
[354272214,1740384640576,-5091.82413923,0.000149,2]
[354272215,1740384640629,-636.49008832,0.000149,2]
[354272216,1740384640640,-1290.0,0.000149,2]
[354272224,1740384640757,-50.00208523,0.000149,2]
[354272557,1740384643562,-9849.16828037,0.000149,2]
[354272569,1740384643673,-30897.61764782,0.000149,2]
[354272572,1740384643682,-499.32223085,0.000149,2]
[354272574,1740384643691,-281.29686783,0.000149,2]
[354272575,1740384643700,-328.07825886,0.000149,2]
[354272578,1740384643710,-1008.16430314,0.00014906,2]
[354272579,1740384643719,-1008.16430314,0.00014918,2]
[354272582,1740384643728,-1008.16430314,0.00014929,2]
[354272583,1740384643738,-281.29686783,0.00014931,2]
[354272585,1740384643747,-1008.16430314,0.0001494,2]
[354272587,1740384643756,-1008.16430314,0.00014951,2]
[354272589,1740384643765,-1048.77477816,0.00014961,2]
[354272591,1740384643774,-1048.7747781,0.00014961,2]
[354272594,1740384643784,-1048.7747781,0.00014961,2]
[354272595,1740384643794,-1048.7747781,0.00014961,2]
[354272597,1740384643803,-1048.7747781,0.00014961,2]
[354272599,1740384643812,-1048.7747781,0.00014962,2]
[354272601,1740384643821,-1048.7747781,0.00014962,2]
[354272603,1740384643831,-1048.7747781,0.00014962,2]
[354272605,1740384643840,-1048.7747781,0.00014962,2]
[354272607,1740384643849,-1058.9807265,0.00014962,2]
[354272609,1740384643858,-167.27035013,0.00014962,2]
[354272611,1740384643868,-1008.16430314,0.00014962,2]
[354272613,1740384643877,-1048.7747781,0.00014962,2]
[354272615,1740384643886,-3524.54350325,0.00014962,2]
[354272617,1740384643895,-281.29686783,0.00014962,2]
[354272619,1740384643904,-441.19773207,0.00014962,2]
[354272621,1740384643913,-5800.0,0.00014974,2]
[354272623,1740384643922,-5800.0,0.00014983,2]
[354272625,1740384643932,-715.25980295,0.0001499,2]
[354272627,1740384643941,-203.82369593,0.0001499,2]
[354272629,1740384643951,-5800.0,0.00014991,2]
[354272632,1740384643962,-500.0,0.00014999,2]
[354272633,1740384643972,-500.0,0.00014999,2]
[354272635,1740384643981,-500.0,0.00014999,2]
[354272637,1740384643991,-294.1318884,0.00014999,2]
[354272639,1740384644000,-855.41544908,0.00014999,5]
[354272641,1740384644009,-14233.81539645,0.00015,5]
[354272644,1740384644020,-638.08786588,0.00015,5]
[354272828,1740384646075,-965.96412,0.00015,5]
[354272858,1740384646334,-3748.43723642,0.00015,5]
[354272870,1740384646440,-646.64999997,0.00015,5]
[354272934,1740384950409,-20000.0,0.00010281,7]
[354272935,1740385100192,-18.1812699,0.00010281,7]
[354272936,1740385100214,-1146.04,0.00012066,2]
[354272937,1740385100235,-387.62,0.00013949,2]
[354272938,1740385100256,-23900.0,0.0001396,2]
[354272939,1740385100278,-1500.0,0.00013961,2]
[354272940,1740385100299,-3395.05,0.00013984,2]
[354272941,1740385100320,-1852.42,0.00013999,2]
[354272942,1740385100340,-200.0,0.00014029,2]
[354272943,1740385100361,-1000.0,0.00014314,2]
[354272944,1740385100382,-1146.04,0.0001433,2]
[354272945,1740385100403,-655.2217226,0.0001475,2]
[354272946,1740385100426,-604.89858192,0.000149,2]
[354272947,1740385100446,-328.07825886,0.000149,2]
[354272948,1740385100467,-604.89858188,0.00014907,2]
[354272949,1740385100489,-604.89858188,0.00014914,2]
[354272950,1740385100510,-604.89858188,0.00014921,2]
[354272951,1740385100532,-604.89858188,0.00014928,2]
[354272952,1740385100554,-604.89858188,0.00014934,2]
[354272953,1740385100575,-3643.58213322,0.00014935,2]
[354272954,1740385100596,-167.27035013,0.00014941,2]
[354272955,1740385100617,-604.89858188,0.00014941,2]
[354272956,1740385100638,-604.89858188,0.00014948,2]
[354272957,1740385100658,-604.89858188,0.00014955,2]
[354272958,1740385100681,-151.28296098,0.00014958,2]
[354272959,1740385100701,-151.28296092,0.00014959,2]
[354272960,1740385100721,-151.28296092,0.00014959,2]
[354272961,1740385100741,-151.28296092,0.0001496,2]
[354272962,1740385100761,-151.28296092,0.00014961,2]
[354272963,1740385100782,-151.28296092,0.00014961,2]
[354272964,1740385100803,-151.28296092,0.00014962,2]
[354272965,1740385100824,-604.89858188,0.00014962,2]
[354272966,1740385100845,-281.29686783,0.00014962,2]
[354272967,1740385100865,-345.13310563,0.00014962,2]
[354272968,1740385100885,-441.19773207,0.00014962,2]
[354272969,1740385100906,-500.0,0.00014973,2]
[354272970,1740385100930,-715.25980295,0.0001499,2]
[354272971,1740385100952,-23779.01421302,0.00014996,4]
[354272972,1740385100975,-500.0,0.00014999,2]
[354272973,1740385100999,-500.0,0.00014999,2]
[354272974,1740385101022,-500.0,0.00014999,2]
[354272975,1740385101044,-294.1318884,0.00014999,2]
[354272976,1740385101065,-2424.27834,0.00014999,2]
[354272977,1740385101086,-855.41544908,0.00014999,5]
[354272978,1740385101112,-719587.60718001,0.00015,5]
[354272979,1740385101133,-38295.62434205,0.00015,2]
[354272980,1740385101153,-518.07746289,0.00015,2]
[354272981,1740385101176,-5800.0,0.00015,2]
[354272982,1740385101201,-200064.3,0.00015,15]
[354272983,1740385101221,-150.0,0.00015041,2]
[354272984,1740385101241,-1263.67681443,0.00015051,10]
[354272985,1740385101262,-1561.0,0.00015058,2]
[354272986,1740385101282,-199.34182382,0.00015061,5]
[354272987,1740385101303,-1866.66185552,0.00015061,5]
[354272988,1740385101323,-1060.32,0.00015061,2]
[354272989,1740385101343,-6398.68137132,0.00015062,5]
[354272990,1740385101364,-291762.51147093,0.00015062,15]
[354272991,1740385169584,-436.8144818,0.00014759,2]
[354272992,1740385169606,-10487.74778106,0.00014962,2]
[354272993,1740385169626,-381.98420208,0.00014962,2]
[354272994,1740385169647,-21025.91897298,0.00014962,2]
[354272995,1740385169668,-562.59373566,0.00014962,2]
[354272996,1740385169690,-500.0,0.00015061,2]
[354272997,1740385169711,-257.75261622,0.00015061,2]
[354272998,1740385169732,-359793.80359,0.00015062,5]
[354272999,1740385169753,-427.70772454,0.00015062,5]
[354273000,1740385169774,-1512.0,0.00015062,2]
[354273001,1740385169797,-111751.67689566,0.00015062,15]
[354273002,1740385273060,-153.355106,0.00010958,2]
[354273003,1740385273087,-151.134301,0.00010958,2]
[354273004,1740385273108,-291.2096545,0.0001476,2]
[354273005,1740385273128,-1000.0,0.00015,2]
[354273006,1740385273149,-5260.6532848,0.00015052,2]
[354273007,1740385273175,-203.82369593,0.00015052,2]
[354273008,1740385273199,-1003.05,0.00015058,2]
[354273009,1740385273222,-179896.901795,0.00015062,5]
[354273010,1740385273243,-3199.34068566,0.00015062,5]
[354273011,1740385273264,-994.89,0.00015062,2]
[354273012,1740385273285,-1011.76,0.00015062,2]
[354273013,1740385273307,-1476833.88147711,0.00015062,15]
[354273016,1740385433790,253.9,8.767e-05,2]
[354273024,1740385615801,10000.0,0.00014016,30]
[354273025,1740385621962,-86000.0,0.0001,2]
[354273026,1740385642090,10000.0,0.00014016,30]
[354273027,1740385680819,-375838.43985528,0.0001,2]
[354273028,1740385680841,-22734.43567408,0.0001,2]
[354273029,1740385680861,-184.86103715,0.00010858,2]
[354273030,1740385680884,-289.559235,0.00010958,2]
[354273031,1740385680909,-172.076007,0.00010958,2]
[354273032,1740385680931,-204.73112349,0.000116,2]
[354273033,1740385680957,-150.0,0.00013537,2]
[354273034,1740385680980,-150.0,0.00013788,2]
[354273035,1740385681001,-500.0,0.00013916,2]
[354273036,1740385681022,-1465.08,0.00013962,2]
[354273037,1740385681044,-150.0,0.00014038,2]
[354273038,1740385681065,-600.0,0.000141,5]
[354273039,1740385681086,-1300.0,0.000142,5]
[354273040,1740385681109,-150.0,0.00014289,2]
[354273041,1740385681130,-2000.0,0.000143,5]
[354273042,1740385681150,-150.38,0.00014301,2]
[354273043,1740385681172,-150.0,0.00014301,2]
[354273044,1740385681198,-2700.0,0.000144,5]
[354273045,1740385681221,-3400.0,0.000145,5]
[354273046,1740385681244,-167.45,0.00014528,2]
[354273047,1740385681266,-150.0,0.0001454,2]
[354273048,1740385681291,-600.0,0.000146,5]
[354273049,1740385681312,-600.0,0.000147,5]
[354273050,1740385681336,-194.1397697,0.0001476,2]
[354273051,1740385681356,-5800.0,0.00014783,2]
[354273052,1740385681379,-150.0,0.0001479,2]
[354273053,1740385681400,-5800.0,0.00014791,2]
[354273054,1740385681421,-5800.0,0.000148,2]
[354273055,1740385681446,-600.0,0.000148,5]
[354273056,1740385681466,-39847.96032627,0.00014862,2]
[354273057,1740385681487,-22940.88697203,0.000149,2]
[354273058,1740385684362,4000.0,0.00011,10]
[354273064,1740385812414,-200.0,0.00013991,2]
[354273065,1740385812446,-1004.77,0.00013994,2]
[354273066,1740385812475,-1000.0,0.00013995,2]
[354273067,1740385812501,-194.1397697,0.0001476,2]
[354273068,1740385812529,-487.53402993,0.0001479,2]
[354273069,1740385812559,-487.5340299,0.00014809,2]
[354273070,1740385812587,-487.5340299,0.00014828,2]
[354273071,1740385812615,-487.5340299,0.00014847,2]
[354273072,1740385812641,-404.74,0.00014852,2]
[354273073,1740385812668,-404.74,0.00014852,2]
[354273074,1740385812691,-200.0,0.00014862,2]
[354273075,1740385812703,-1004.77,0.00014862,2]
[354273076,1740385812714,-1000.0,0.00014862,2]
[354273077,1740385812725,-194.1397697,0.00014862,2]
[354273078,1740385812778,-487.53402993,0.00014862,2]
[354273079,1740385812843,-487.5340299,0.00014862,2]
[354273080,1740385812898,-487.5340299,0.00014862,2]
[354273081,1740385812957,-487.5340299,0.00014862,2]
[354273082,1740385812972,-404.74,0.00014862,2]
[354273083,1740385812983,-404.74,0.00014862,2]
[354273084,1740385813002,-265702.94822134,0.00014862,2]
[354273094,1740385832310,-371299.22465539,0.00014862,2]
[354273096,1740385832322,-60555.44598076,0.00014862,2]
[354273097,1740385832333,-541.470002,0.00014862,2]
[354273098,1740385832475,-408.0,0.00014862,2]
[354273099,1740385832486,-38991.79761426,0.00014862,2]
[354273100,1740385832498,-6746.5,0.00014862,2]
[354273101,1740385832510,-1284.422624,0.00014862,2]
[354273102,1740385832585,-550.62852736,0.00014862,2]
[354273103,1740385832596,-1039.8393631,0.00014862,2]
[354273104,1740385832639,-2039.40212491,0.00014862,2]
[354273105,1740385832650,-2613.4388292,0.00014862,2]
[354273655,1740385838232,-1230.3999996,0.00014862,2]
[354273663,1740385838291,-871.7117907,0.00014862,2]